Cogmind - Beta 15 @@@ ROGUE MODE // 2025.07.28 @ 14:37:07 Player: P9H Result: Destroyed by G-34 Mercenary with Small Laser Performance ------------- Evolutions (0) 0 Regions Visited (2) 400 Robots Destroyed (17) 85 Value Destroyed (344) 344 Prototype IDs (0) 0 Alien Tech Used (0) 0 Bonus (25) 25 TOTAL SCORE: 854 Bonus ------- Follower Combat Kills 25 Cogmind --------- Core Integrity 0/250 Matter 300/300 Energy 250/250 System Corruption 0% Temperature Warm (194) Movement Rolling (95) Ox1 Location -10/Mines Parts ------- > --- POWER (1) -------- Ion Engine > --- PROPULSION (2) --- Wheel > --- UTILITY (2) ------ Medium Storage Unit Signal Interpreter > --- WEAPON (2) ------- Particle Gun > --- INVENTORY (10) --- Ion Engine Light Ion Engine Light Treads Light Treads Heat Sink High-capacity Matter Pod (200) Tractor Beam Light Assault Rifle Mining Claw Signal Generator Peak State ------------ > --- POWER ------------ Ion Engine > --- PROPULSION ------- Wheel Compact Wheel > --- UTILITY ---------- Medium Storage Unit Signal Interpreter > --- WEAPON ----------- Particle Gun Light Assault Rifle > --- INVENTORY -------- Light Ion Engine Light Treads Light Treads Heat Sink High-capacity Matter Pod Medium Laser Small Laser Light Assault Rifle Mining Claw Mining Claw [Rating: 9] Favorites ----------- Power Ion Engine Engine Ion Engine Propulsion Compact Wheel Wheel Compact Wheel Utility Signal Interpreter Storage Medium Storage Unit Processor Signal Interpreter Weapon Light Assault Rifle Energy Gun Particle Gun Ballistic Gun Light Assault Rifle Build | -11 -10 -10 ------- Run | Yrd Mat Min Slots Evolved . | . . . Power . | . . . Propulsion . | . . . Utility . | . . . Weapon . | . . . Parts Attached 16 | 5 3 8 Power 3 | 1 . 2 Engine 3 | 1 . 2 Core . | . . . Reactor . | . . . Propulsion 5 | 2 . 3 Treads . | . . . Leg . | . . . Wheel 5 | 2 . 3 Hover . | . . . Flight . | . . . Utility 3 | . 3 . Device . | . . . Storage 2 | . 2 . Processor 1 | . 1 . Hackware . | . . . Protection . | . . . Artifact . | . . . Weapon 5 | 2 . 3 Energy Gun 3 | 1 . 2 Energy Cannon . | . . . Ballistic Gun 2 | 1 . 1 Ballistic Cannon . | . . . Launcher . | . . . Special Weapon . | . . . Impact Weapon . | . . . Slashing Weapon . | . . . Piercing Weapon . | . . . Special Melee Weapon . | . . . Unidentified Prototypes . | . . . Parts Lost 9 | . . 9 Power 2 | . . 2 Propulsion 4 | . . 4 Utility . | . . . Weapon 3 | . . 3 Highest Loss Streak 3 | . . 3 To Critical Strikes . | . . . Average Backups 9 | 3 7 9 Power 1 | 1 1 1 Propulsion 2 | 1 2 2 Utility 1 | . . 2 Weapon 3 | . 2 4 Tool/Special . | . . . Unused Backups 14 | . . 14 Power 3 | . . 3 Propulsion 2 | . . 2 Utility 4 | . . 4 Weapon 5 | . . 5 Tool/Special . | . . . Average Slot Usage (%) 94 | . 91 94 Engine 13 | . 14 12 Wheel 25 | . 28 24 Storage 14 | . 14 14 Processor 12 | . 6 14 Energy Gun 13 | . 14 13 Ballistic Gun 13 | . 14 13 Peak Build Rating 9 | 5 8 9 Average Rating 7 | 3 6 8 On Entrance 4 | . 5 8 Naked Turns . | . . . Heaviest Build 19 | 7 17 19 Greatest Support 26 | 26 26 26 Greatest Overweight (x) 1 | . . 1 Average Overweight (x) . | . . . Largest Inventory Capacity 10 | 5 10 10 Average Capacity 9 | 5 8 10 Most Carried 10 | 5 10 10 Average Carried 9 | 3 7 9 Final Capacity 10 | 5 10 10 Final Carried 10 | 5 10 10 Class Distribution -------------------- 56% | Scavenger-Mutant 43% | Mutant Dominant Class ---------------- Mutant | -10/Materials Scavenger-Mutant | -10/Mines Resources | -11 -10 -10 ----------- Run | Yrd Mat Min Matter Collected 576 | 139 79 358 Remotely . | . . . Salvage Created 411 | . 79 332 Parts 37 | . 3 34 Haulers Intercepted . | . . . Recyclers Shooed . | . . . Parts Field Recycled . | . . . Retrieved Matter . | . . . Parts Self-Destructed . | . . . Prevented . | . . . Kills | -11 -10 -10 ------- Run | Yrd Mat Min Combat Hostiles Destroyed 16 | . 2 14 Guns 16 | . 2 14 Classes Destroyed 3 | . 1 2 Worker 1 | . . 1 Swarmer 10 | . . 10 Grunt 6 | . 2 4 Best Kill Streak 5 | . 2 5 Combat Bots Only 5 | . 2 5 Max Kills in Single Turn 1 | . 1 1 Gunslinging . | . . . Exploded . | . . . Melee . | . . . Uniques/NPCs Destroyed . | . . . Combat | -11 -10 -10 -------- Run | Yrd Mat Min Hostile Shots Fired 102 | . 18 84 Missed 19 | . 3 16 Hits 83 | . 15 68 Projectile 83 | . 15 68 Critical Strikes 1 | . . 1 Damage Taken 920 | . 217 703 Core 255 | . 31 224 Absorbed by Shields . | . . . Core Remaining (%) 100 | 100 . . Volleys Fired 57 | . 10 47 Largest 2 | . 2 2 Hottest 85 | . 70 85 Shots Fired 101 | . 20 81 Gun 101 | . 20 81 Cannon . | . . . Launcher . | . . . Special . | . . . Kinetic 48 | . 10 38 Thermal 53 | . 10 43 Explosive . | . . . Electromagnetic . | . . . Robot Hit Streak 10 | . 4 10 Robot Miss Streak 4 | . 2 4 Penetration Max . | . . . Secondary Targets 3 | . . 3 Max Gunslinging Chain 1 | . . 1 Shots Hit Robots 60 | . 12 48 Core Hits 31 | . 5 26 Critical Kills . | . . . Critical Parts Destroyed . | . . . Critical Strikes 3 | . 2 1 Burn 3 | . 2 1 Melee Attacks . | . . . Impact . | . . . Slashing . | . . . Piercing . | . . . Sneak Attacks . | . . . Combat Hostiles . | . . . Follow-up Attacks . | . . . Damage Inflicted 679 | . 161 518 Guns 678 | . 161 517 Cannons . | . . . Explosions . | . . . Melee . | . . . Ramming 1 | . . 1 Kinetic 235 | . 63 172 Thermal 443 | . 98 345 Explosive . | . . . Electromagnetic . | . . . Impact . | . . . Slashing . | . . . Piercing . | . . . Highest Corruption . | . . . Average Corruption . | . . . Corruption Purged . | . . . Corruption Blocked . | . . . Overload Shots . | . . . Overflow Damage . | . . . Projectiles . | . . . Explosions . | . . . Melee . | . . . Knockbacks . | . . . Impact . | . . . Kinetic . | . . . Secondary . | . . . Self-Inflicted Damage . | . . . Shots . | . . . Rammed 1 | . . 1 Targets Rammed 1 | . . 1 Kicked . | . . . Crushed . | . . . Highest Temperature 188 | . 171 188 Average Temperature 58 | . 89 48 Received Heat Transfer 324 | . 123 201 Siege Activations . | . . . Martial Activations . | . . . Shielding Activations . | . . . Robots Disrupted . | . . . Combat Hostiles . | . . . Robots Corrupted . | . . . Combat Hostiles . | . . . Parts Fried . | . . . Impact Corruptions . | . . . Robots Melted . | . . . Combat Hostiles . | . . . Parts Melted 2 | . 1 1 Heat Transferred 1409 | . 444 965 Parts Sabotaged . | . . . Parts Stolen . | . . . Parts Stripped . | . . . Power Chain Reactions . | . . . Alert | -11 -10 -10 ------- Run | Yrd Mat Min Maximum Alert Level . | . . . Low Security (%) 100 | 100 100 100 Level 1 . | . . . Level 2 . | . . . Level 3 . | . . . Level 4 . | . . . Level 5 . | . . . High Security . | . . . Max Security . | . . . Peak Influence 171 | . 40 171 Initial 11 | . . 11 Average 63 | . 5 77 Influence Increases 491 | . 50 441 Destroy 0b10 Robot/C 340 | . 40 300 Destroy 0b10 Robot/NC 5 | . . 5 Destroy Leader 70 | . 10 60 Allied During Kill 16 | . . 16 Lose Combat Pursuer 60 | . . 60 Influence Decreases 489 | . 20 469 Entered New Map 19 | . . 19 Time Decay 380 | . 20 360 Lost Part 90 | . . 90 Squads Dispatched 1 | . . 1 Investigation . | . . . Extermination . | . . . Reinforcement . | . . . Assault 1 | . . 1 Garrison . | . . . Intercept . | . . . Searches Triggered . | . . . Construction Impeded . | . . . Haulers Reinforced . | . . . Active Scanning Responses . | . . . Cargo Convoy Interrupts . | . . . Stealth | -11 -10 -10 --------- Run | Yrd Mat Min Distress Signals 1 | . 1 . Communications Jammed . | . . . Distress Signals . | . . . Times Spotted 28 | . 5 23 Peak Tracking Total 5 | . 5 4 Tactical Retreats 2 | . . 2 Traps | -11 -10 -10 ------- Run | Yrd Mat Min Traps Triggered . | . . . Indirectly . | . . . Trap Hack Attempts . | . . . Triggered . | . . . Disarmed . | . . . Reprogrammed . | . . . Reused . | . . . Traps Extracted . | . . . Installed . | . . . Triggered . | . . . Machines | -11 -10 -10 ---------- Run | Yrd Mat Min Machines Disabled . | . . . Max in Single Turn . | . . . Machines Repaired . | . . . Machines Dismantled . | . . . Machines Sabotaged . | . . . Overloaded Fab Kills . | . . . Hacking | -11 -10 -10 --------- Run | Yrd Mat Min Machines Accessed . | . . . Terminals . | . . . Fabricators . | . . . Repair Stations . | . . . Recycling Units . | . . . Scanalyzers . | . . . Garrison Access . | . . . Total Hacks . | . . . Successful . | . . . Failed . | . . . Catastrophic . | . . . Database Lockouts . | . . . Manual . | . . . Terminals . | . . . Fabricators . | . . . Repair Stations . | . . . Recycling Units . | . . . Scanalyzers . | . . . Garrison Access . | . . . Terminal Hacks . | . . . Fabricator Hacks . | . . . Repair Station Hacks . | . . . Recycling Unit Hacks . | . . . Scanalyzer . | . . . Garrison Access Hacks . | . . . Unauthorized Hacks . | . . . Terminals . | . . . Fabricators . | . . . Repair Stations . | . . . Recycling Units . | . . . Scanalyzers . | . . . Garrison Access . | . . . Data Cores Recovered . | . . . Used . | . . . Hacking Detections . | . . . Full Trace Events . | . . . Feedback Events . | . . . Feedback Blocked . | . . . Robot Schematics Acquired . | . . . Robots Built . | . . . Authchips . | . . . Time . | . . . Total Robot Build Rating . | . . . Part Schematics Acquired . | . . . Parts Built . | . . . Authchips . | . . . Time . | . . . Total Part Build Rating . | . . . Parts Repaired . | . . . Time . | . . . Parts Recycled . | . . . Recycled Matter . | . . . Retrieved Matter . | . . . Retrieved Components . | . . . Parts Scanalyzed . | . . . Part Schematics Acquired . | . . . Parts Damaged . | . . . Bothacking | -11 -10 -10 ------------ Run | Yrd Mat Min Used RIF Installer . | . . . Robots Hacked . | . . . Non-combat . | . . . Combat . | . . . Robot Hacks Applied . | . . . Relay Couplers Released . | . . . Fabnet Peak Effective % . | . . . Robots Rewired . | . . . Allies Hacked . | . . . Hacks Repelled . | . . . Allies | -11 -10 -10 -------- Run | Yrd Mat Min Total Allies 6 | . . 6 Largest Group 6 | . . 6 Highest-Rated Group 112 | . . 112 Highest-Rated Ally 31 | . . 31 Total Orders . | . . . Ally Attacks 1 | . . 1 Total Damage 17 | . . 17 Kills 1 | . . 1 Allies Corrupted . | . . . Allies Melted . | . . . Intel | -11 -10 -10 ------- Run | Yrd Mat Min Active Infowar (turns) . | . . . Robot Analysis Total . | . . . Derelict Logs Recovered 2 | . . 2 Drone Launches . | . . . Drone Recoveries . | . . . Exploration | -11 -10 -10 ------------- Run | Yrd Mat Min Turns Passed 1025 | 56 143 826 Spaces Moved 849 | 54 105 690 Core 17 | 17 . . Treads . | . . . Legs . | . . . Wheels 832 | 37 105 690 Hover . | . . . Flight . | . . . Fastest Speed 50 | 50 90 90 Average Speed 90 | 77 90 91 Slowest Speed 115 | 90 90 115 Overloaded Moves . | . . . Propulsion Burnouts . | . . . Robots Hopped . | . . . Potential Cave-ins . | . . . Cave-ins Triggered . | . . . Exploration Rate (%) 40 | 3 29 89 Regions Visited 2 Branch Regions 1 Pre-discovered Areas . | . . . Known Exits Taken 1 | . 1 . Unknown Exits Taken 1 | 1 . . Scrap Searched 1 | . . 1 Spaces Dug . | . . . Terrain Destroyed . | . . . Melee . | . . . Projectile . | . . . AOE . | . . . Terrain Rammed . | . . . Walls Destroyed . | . . . Machines Disabled . | . . . Actions | -11 -10 -10 --------- Run | Yrd Mat Min Total 1018 | 68 133 817 Wait 58 | . 7 51 Move 847 | 53 104 690 Hop . | . . . Pick Up 29 | 10 8 11 Fast Attach 2 | . . 2 Attach 12 | 5 2 5 Detach . | . . . Swap 3 | . 1 2 Drop 9 | . 1 8 Fire 57 | . 10 47 Melee . | . . . Ram 1 | . . 1 Kick . | . . . Crush . | . . . Escape Stasis . | . . . Rewire . | . . . Trap . | . . . Miscellaneous . | . . . Route ------- -11/Scrapyard -10/Materials -10/Mines (discovered 2 exits: *Mat / *Sub) History --------- Turn | Location | Event 31 | -11/Scrapyard | Discovered new exit (range 16) 57 | -11/Scrapyard | Entered Materials 195 | -10/Materials | Discovered new exit (range 6) 199 | -10/Materials | Identified exit to Mines 200 | -10/Materials | Entered Mines 309 | -10/Mines | Build established: Mutant 377 | -10/Mines | Core integrity fell below 50% 413 | -10/Mines | Lost 3 parts (1p1n1w) 423 | -10/Mines | Learned Materials garrison access intel 572 | -10/Mines | Learned Materials stockpile data 729 | -10/Mines | Assisted by bots powering up and referring to "LRC-V3" 731 | -10/Mines | Discovered new exit (range 14) 750 | -10/Mines | Identified exit to Materials 754 | -10/Mines | Build established: Scavenger-Mutant 785 | -10/Mines | Core integrity fell below 20% 912 | -10/Mines | Discovered new exit (range 6) 915 | -10/Mines | Identified exit to Subcaves 981 | -10/Mines | Met a Derelict testing a Signal Generator 988 | -10/Mines | Found Signal Generator 1026 | -10/Mines | Destroyed by G-34 Mercenary with Small Laser Last Messages --------------- 00982_ Signal Generator broadcasts a burst of procedurally generated transmissions. 00982_ ALERT: Intercepting significant anomalous signal. Dispatching assault force. 00983_ W7-ZMZ(g): "Okay, I guess that means it works. Now let's get out of here!" 00987_ Dropped Med. Laser. 00988_ Acquired Signal Generator. 01010_ C-30 ARC bursts open, deploying its payload. 01010_ G-47 Trooper unfolds itself. 01010_ G-34 Mercenary unfolds itself. 01010_ Critical hit (Burn: +37). 01014_ G-34 Mercenary destroyed. 01017_ K-01 Serf collects debris. 01018_ Lgt. Assault Rifle destroyed. 01020_ M-13 Machinist destroyed. 01020_ K-01 Serf collects debris. 01022_ Com. Wheel destroyed. 01023_ K-01 Serf collects debris. Map ----- +----------------------------------------------------+ | | | | | | | | | | | ?????????????????????????????????????????????????? | | ?????????????????????????????????????????????????? | | ?????????????????????????????????????????????????? | | ?????????????????????????????#####???############# | | ????????????????????????????## ##??# # | | ???????????????????????????## #??# """" # | | ??????????????????????????## #??# """" # | | ????????????????????????### #???# """" # | | ???????????????????????## ##???# = # | | ??????????????????????## ###????# ##++ | | ?????????????????????## ####??????# ## | | ????????????????????## ##?????????# [ ## | | ????????????????????# ##?????????# *= * ## | | ????????????????????# [ ##????????## ######## | | ????????????????????## #??###????# #??????# | | ?????????????????????## #?## ##???# #????### | | ??????????????????????# gz ##?# ##??# #?#### | | ??????????????????????##gg##??# #### ### # | | ???????????????????????##g#???# ## | | ????????????????????????#g#???# ##% ##? | | ????????????????????????#@#???# ==! ### ##? | | ???????????????????????##g#???## [ !! #?## ## | | ??????????????????????##=g##???# # !! #??## | | ????????????????????### %= #???# # #???## | | ???????????????????## * ###### #????# | | ????????????????#### k% ########???## | | ????????????????# g#########???????#### | | ????????????????# ### ####??????????????## | | ?????????######## #?###????????????????## | | ?????????# #????????????????????# | | ######[########???????????????????## ## | | =!=#??????????????????####????# ##? | | # #######*#?####??????######## ##???# #?? | | ?????????# ### ##?????# #???## #?? | | ????????##= ##????? #????## #?? | | ##??????# #??????# ##???## ##?? | | #????## #???????# ##### ##??? | | ##### ## ##???????# ##???? | | [% ##?###???????## ###????? | | # ##????######### ##??????? | | ## ######## ### #####???????? | | ?# ####?# ###### ##?####????????##?? | | ?## ##????# #### #????## ##???????????### #?? | | ??## ##?????# #??# #?????#### #???????????## #?? | | #### #????### #??# #????????# #???????????# #?? | +----------------------------------------------------+ Best States ------------- Heat Dissipation 25 Energy Generation 10 Energy Capacity 250 Matter Stores 300 Matter Capacity 300 Sight Range 16 Terrain Scan Density 10 Evasion (%) 50 Item Schematics ----------------- None Robot Schematics ------------------ None Fabricated ------------ Nothing Repaired ---------- Nothing Alien Tech Used ----------------- None Achievements -------------- None Challenges ------------ None Game ------ Seed FusionCannonSword Manual? 0 Play Time 00:09:36 Cumulative 53.6 hours Start 2025.07.28 @ 14:25:40 End 2025.07.28 @ 14:37:07 Sessions 1 Manual Loads 0 Difficulty Rogue Special Mode None Game No. 102 Rogue 102 Adventurer 0 Explorer 0 Win Type - Total 0 Types 0/0/0/0/0/0/0/0/0/0 Lore% 9 Gallery% 33 Achievement% 26 Wizard Run 0 Options --------- Layout 1 ASCII 0 Keyboard 0 Movement Numpad Keybinds 0 Fullscreen 2 Font 32/SmallcapsGlow Map View 50x35 Zoom Use 0% Tactical HUD 1 Map Filters NONE Filters NONE Steam 1 RUN: b4f0409a-d4c1-49c9-be6f-b57ded728525